bitfinex-derivatives/quotes_ETHF0:USTF0_20240910
["timestamp","ask_amount","ask_price","bid_price","bid_amount"]
[1725957069668,1.65764264,2360.2,2360.1,1.22]
[1725957069969,2.218847,2360.3,2360.1,1.22]
[1725957070168,1.65742779,2360.2,2360.1,1.22]
[1725957070667,1.65742779,2360.2,2360.1,1.64368]
[1725957071265,1.10483876,2360.2,2360.1,1.22]
[1725957071464,1.65742779,2360.2,2360.1,1.22]
[1725957072066,1.65742779,2360.2,2359.9,0.42371]
[1725957072373,1.52539,2360.1,2359.7,1.25838427]
[1725957072567,0.5337,2360.0,2359.9,1.22]
[1725957073964,4.7713,2360.0,2359.9,1.22]
[1725957074858,4.7713,2360.0,2359.8,0.42372]
[1725957074859,10.7713,2360.0,2359.7,0.21373427]
[1725957075059,0.42375,2359.8,2359.5,0.42379]
[1725957075270,1.084,2359.7,2359.6,1.22]
[1725957075776,5.3216,2359.7,2359.6,1.22]
[1725957076773,5.3216,2359.7,2359.6,1.64377]
[1725957076972,1.084,2359.7,2359.6,1.64377]
[1725957077878,5.3216,2359.7,2359.6,1.22]
[1725957078073,0.42378,2359.6,2359.4,1.22]
[1725957078369,1.65752795,2359.5,2359.4,1.22]
[1725957078566,5.89592795,2359.5,2359.4,1.22]
[1725957078765,5.89592795,2359.5,2359.4,1.64381]
[1725957080765,4.7921,2359.5,2359.4,1.64381]
[1725957080970,5.89592795,2359.5,2359.4,1.64381]
[1725957081463,1.65752795,2359.5,2359.4,1.64381]
[1725957081662,5.89592795,2359.5,2359.4,1.64381]
[1725957081865,1.65752795,2359.5,2359.4,1.64381]
[1725957084874,1.10382795,2359.5,2359.4,1.64381]
[1725957085081,1.10382795,2359.6,2359.5,0.42379]
[1725957086282,1.105778,2359.6,2359.5,0.42379]
[1725957086781,1.10585754,2359.6,2359.5,0.42379]
[1725957087175,1.65742779,2359.6,2359.5,0.42379]
[1725957087377,1.10619238,2359.6,2359.5,0.42379]
[1725957088773,1.10619238,2359.6,2359.5,0.95009]
[1725957088973,2.76362017,2359.7,2359.6,0.42377]
[1725957089171,2.218847,2359.9,2359.7,0.42376]
[1725957089172,1.10619238,2359.8,2359.7,0.42376]
[1725957089378,1.10619238,2359.8,2359.7,2.20356]
[1725957089683,1.65742779,2359.9,2359.8,0.42374]
[1725957091679,1.10740302,2360.0,2359.9,0.42372]
[1725957091988,1.10740302,2360.0,2359.9,5.88132]
[1725957092391,1.10740302,2360.1,2360.0,0.4237]
[1725957092684,1.10740302,2360.1,2360.0,2.1898]
[1725957092879,1.10740302,2360.2,2360.1,0.42368]
[1725957093081,1.10740302,2360.4,2360.3,0.42365]
[1725957093278,1.10740302,2360.5,2360.4,0.42363]
[1725957093484,1.10740302,2360.6,2360.5,0.42361]
[1725957093688,1.65742779,2360.6,2360.5,0.77179874]
[1725957094077,1.10698534,2360.6,2360.5,1.19540874]
[1725957095380,3.32742111,2360.6,2360.5,1.19540874]
[1725957095587,3.32742111,2360.6,2360.5,0.77179874]
[1725957095781,3.32742111,2360.6,2360.5,1.19540874]
[1725957096092,3.32742111,2360.7,2360.5,3.41179874]
[1725957096278,6.29282099,2360.7,2360.5,3.41179874]
[1725957097387,3.32742111,2360.7,2360.5,3.41179874]
[1725957097591,6.26989429,2360.7,2360.5,3.83540874]
[1725957097782,3.32742111,2360.7,2360.5,3.83540874]
[1725957098088,3.32742111,2360.7,2360.5,3.41179874]
[1725957098386,3.32742111,2360.7,2360.5,3.83540874]
[1725957099183,5.01892111,2360.8,2360.5,3.83540874]
[1725957099390,3.32742111,2360.7,2360.5,3.83540874]
[1725957100290,4.46162111,2360.8,2360.5,3.41179874]
[1725957100491,0.566,2360.8,2360.7,3.06358]
[1725957100678,0.566,2360.8,2360.7,2.64]
[1725957101887,0.566,2360.8,2360.7,3.06358]
[1725957102287,3.32742111,2361.0,2360.8,0.42356]
[1725957102496,1.68666131,2361.0,2360.7,3.06357]
[1725957102683,2.11018131,2361.0,2360.7,2.64]
[1725957103088,2.11018131,2361.0,2360.7,3.06358]
[1725957103289,0.42354,2360.9,2360.7,2.64]
[1725957103489,1.10466131,2360.9,2360.7,2.64]
[1725957103689,1.10466131,2360.9,2360.7,3.06358]
[1725957104198,0.42354,2360.9,2360.7,0.42358]
[1725957104400,2.11019131,2361.0,2360.8,0.42356]
[1725957104896,1.10466131,2360.9,2360.8,0.42356]
[1725957105084,1.68666131,2361.0,2360.6,2.64]
[1725957105288,2.11019131,2361.0,2360.8,0.42355]
[1725957105584,2.11019131,2361.0,2360.6,2.64]
[1725957105585,1.68666131,2361.0,2360.6,2.64]
[1725957105792,2.11018131,2361.0,2360.8,0.42355]
[1725957106301,0.582,2361.0,2360.9,0.42354]
[1725957106497,1.68666131,2361.0,2360.8,0.42355]
[1725957106799,1.68666131,2361.0,2360.8,3.06355]
[1725957106800,0.582,2361.0,2360.8,3.06355]
[1725957107000,0.582,2361.0,2360.9,3.06354]
[1725957107296,1.52811131,2361.4,2361.1,0.42349]
[1725957107500,0.576,2361.4,2361.2,3.64298]
[1725957107698,0.576,2361.4,2361.3,0.42347]
[1725957108000,1.66296131,2361.6,2361.2,3.2195]
[1725957108001,0.5583,2361.6,2361.2,3.2195]
[1725957108185,2.68233131,2361.9,2361.5,2.64]
[1725957108391,3.26393131,2361.9,2361.5,3.06342]
[1725957108602,0.42338,2361.8,2361.5,2.64]
[1725957108798,0.4234,2361.7,2361.5,2.64]
[1725957110103,2.84056131,2361.9,2361.3,2.64]
[1725957110287,0.42346,2361.4,2361.2,3.2195]
[1725957110487,0.5549,2361.3,2361.2,3.64299]
[1725957110704,0.5549,2361.3,2361.2,3.2195]
[1725957110889,0.5549,2361.3,2361.2,3.64299]
[1725957111087,0.5549,2361.3,2361.2,3.2195]
[1725957111497,0.5549,2361.3,2361.2,3.64299]
[1725957112201,0.5549,2361.3,2361.2,2.64]
[1725957113000,0.97837,2361.3,2361.2,2.64]
[1725957114094,0.5549,2361.3,2361.2,3.06349]
[1725957117607,2.21189197,2361.3,2361.2,3.06349]
[1725957118903,2.20582981,2361.3,2361.2,3.06349]
[1725957119321,2.62929981,2361.3,2361.2,3.06349]
[1725957119500,0.42351,2361.1,2361.0,3.06352]
[1725957119694,2.07430063,2361.2,2361.0,3.06352]
[1725957120093,1.10047659,2361.1,2361.0,3.06352]
[1725957120597,1.65080063,2361.1,2360.9,0.95543]
[1725957120798,2.24620357,2361.0,2360.9,0.42353]
[1725957120998,0.42356,2360.8,2360.7,0.42356]
[1725957121200,0.42356,2360.8,2360.6,3.06358]
[1725957121201,0.42358,2360.7,2360.6,3.06358]
[1725957121394,1.65087613,2360.8,2360.6,3.06358]
[1725957121395,1.65100787,2360.8,2360.7,0.42358]
[1725957121598,2.07457787,2360.8,2360.6,3.06358]
[1725957121801,2.07457787,2360.8,2360.7,0.42358]
[1725957121993,1.65100787,2360.8,2360.7,0.42358]
[1725957122293,2.07456787,2360.8,2360.7,0.42358]
[1725957122503,0.42356,2360.8,2360.7,0.42358]
[1725957122697,2.07422556,2360.8,2360.7,0.42358]
[1725957123103,0.42356,2360.8,2360.7,0.42358]
[1725957123406,1.65071472,2360.8,2360.7,0.42358]
[1725957123603,2.59856472,2360.9,2360.7,0.42357]
[1725957124004,1.65071472,2360.8,2360.7,0.42357]
[1725957124797,2.07427472,2360.8,2360.6,3.06358]
[1725957125305,1.65071472,2360.7,2360.6,3.06358]
[1725957125501,0.42356,2360.8,2360.6,3.06358]
[1725957125806,0.5243,2360.9,2360.7,0.42358]
[1725957125807,0.94785,2360.9,2360.7,0.42358]
[1725957126597,0.42356,2360.8,2360.7,0.42358]
[1725957126898,0.94785,2360.9,2360.7,0.42358]
[1725957127606,0.94785,2360.9,2360.8,0.42356]
[1725957127800,0.94785,2360.9,2360.6,2.64]
[1725957127801,0.42356,2360.8,2360.7,0.42356]
[1725957128202,0.94785,2360.9,2360.7,0.42356]
[1725957128401,0.94785,2360.9,2360.8,0.42356]
[1725957128908,5.18385,2360.9,2360.8,0.42356]
[1725957130106,5.18385,2360.9,2360.8,1.64356]
[1725957132101,6.28490929,2360.9,2360.8,1.64356]
[1725957132302,6.28490929,2360.9,2360.8,1.22]
[1725957133002,0.42359,2360.7,2360.6,1.64358]
[1725957133404,4.65959,2360.7,2360.6,1.64358]
[1725957134105,5.76064929,2360.7,2360.6,1.64358]
[1725957134299,1.52464929,2360.7,2360.6,1.64358]
[1725957134508,5.76064929,2360.7,2360.6,1.64358]
[1725957134708,1.52464929,2360.7,2360.6,1.64358]
[1725957135608,5.76064929,2360.7,2360.6,1.64358]
[1725957135908,1.52464929,2360.7,2360.6,1.64358]
[1725957136102,1.65071472,2360.7,2360.6,1.64358]
[1725957136300,0.42358,2360.8,2360.7,0.42358]
[1725957136511,0.42358,2360.7,2360.6,1.64359]
[1725957136708,0.42367,2360.2,2360.1,0.52168]
[1725957137007,1.52866098,2360.2,2360.1,1.22]
[1725957137213,2.08115648,2360.2,2360.1,1.64368]
[1725957137506,2.66255366,2360.2,2360.1,1.64368]
[1725957137706,2.23888366,2360.2,2360.1,1.64368]
[1725957138096,2.23888366,2360.2,2360.1,0.42368]
[1725957138506,1.71008366,2360.2,2360.1,0.42368]
[1725957140203,1.10518366,2360.2,2360.1,0.42368]
[1725957140407,1.00385,2360.3,2360.2,0.42367]
[1725957140604,2.10877274,2360.3,2360.2,0.42367]
[1725957141011,6.34557274,2360.3,2360.2,0.42367]
[1725957141314,2.10877274,2360.3,2360.2,0.42367]
[1725957141509,6.34557274,2360.3,2360.2,0.42367]
[1725957142114,2.10877274,2360.3,2360.2,0.42367]
[1725957142311,0.42367,2360.2,2360.1,0.42367]
[1725957142506,0.42367,2360.2,2359.9,0.6103]
[1725957142708,1.52859274,2360.2,2360.1,0.42368]
[1725957143010,0.42369,2360.1,2360.0,0.42369]
[1725957143214,1.10423668,2360.1,2360.0,0.42369]
[1725957143406,1.52791668,2360.2,2360.1,0.42368]
[1725957143811,2.08116648,2360.2,2360.1,0.42368]
[1725957144208,4.2368,2360.2,2359.6,0.52487113]
[1725957144408,0.42375,2359.8,2359.7,0.42375]
[1725957144612,1.10314817,2359.9,2359.7,0.42376]
[1725957144811,1.10314817,2359.9,2359.6,0.5999]
[1725957144812,3.33437817,2359.9,2359.8,0.42374]
[1725957145014,3.33437817,2359.9,2359.7,0.42374]
[1725957145521,2.23123,2359.9,2359.7,0.42374]
[1725957146113,3.33437817,2359.9,2359.7,0.42374]
[1725957146310,0.42375,2359.8,2359.6,0.5999]
[1725957146620,2.23123,2359.9,2359.7,0.42375]
[1725957147517,0.42374,2359.8,2359.7,0.42375]
[1725957147822,0.42374,2359.8,2359.4,0.42379]
[1725957147823,0.42378,2359.6,2359.4,0.42379]
[1725957148022,1.10314817,2359.8,2359.3,0.78814855]
[1725957148212,0.42381,2359.4,2359.3,0.78814855]
[1725957148411,0.42381,2359.4,2359.3,0.21414855]
[1725957148613,1.60401,2359.4,2359.2,0.42383]
[1725957148815,1.1802,2359.4,2359.3,0.42383]
[1725957149823,0.98751,2359.5,2359.3,0.42383]
[1725957150827,0.98749,2359.5,2359.3,0.42382]
[1725957152625,0.42382,2359.4,2359.2,0.42384]
[1725957153023,0.9875,2359.5,2359.3,0.42383]
[1725957153421,0.5637,2359.5,2359.3,0.42383]
[1725957153623,0.9875,2359.5,2359.3,0.42383]
[1725957155021,0.42381,2359.4,2359.2,0.42384]
[1725957155222,0.42381,2359.4,2359.3,0.42383]
[1725957155721,0.5637,2359.5,2359.0,0.78169915]
[1725957155928,0.42384,2359.3,2359.0,1.36409915]
[1725957156531,0.42384,2359.3,2359.1,0.42386]
[1725957158932,1.6232,2359.5,2359.1,0.42386]
[1725957159139,1.05955,2359.4,2359.0,1.78797915]
[1725957159437,0.5637,2359.5,2358.8,0.42391]
[1725957159438,0.42389,2359.0,2358.8,0.42391]
[1725957159639,0.5997,2358.9,2358.8,0.42391]
[1725957159931,0.5997,2358.9,2358.8,0.63201189]
[1725957161134,0.5997,2358.9,2358.8,0.42391]
[1725957162636,0.5997,2358.9,2358.7,1.24296671]
[1725957162839,0.5997,2358.9,2358.8,0.42392]
[1725957163638,0.5997,2358.9,2358.7,1.24297671]
[1725957166335,1.02361,2358.9,2358.7,0.81904671]
[1725957166737,1.02361,2358.9,2358.7,1.24297671]
[1725957166939,0.5997,2358.9,2358.7,1.24297671]
[1725957168931,1.0236,2358.9,2358.7,1.24297671]
[1725957169129,0.5694,2358.8,2358.7,1.24297671]
[1725957170436,0.5694,2358.8,2358.7,0.63317671]
[1725957171234,1.0236,2358.9,2358.7,0.63317671]
[1725957171838,0.5997,2358.9,2358.7,0.63316671]
[1725957172038,1.0236,2358.9,2358.7,0.63316671]
[1725957172232,0.5997,2358.9,2358.7,0.63316671]
[1725957172933,0.5997,2358.9,2358.8,0.599]
[1725957173729,0.5997,2358.9,2358.8,0.81586026]
[1725957173935,0.5997,2358.9,2358.8,0.599]
[1725957174528,0.5997,2358.9,2358.8,1.02292]
[1725957174932,0.5997,2358.9,2358.7,0.63246803]
[1725957175837,0.5997,2358.9,2358.8,0.42392]
[1725957176428,0.5997,2358.9,2358.7,0.63246803]
[1725957177441,0.5997,2358.9,2358.8,0.42392]
[1725957180737,0.5997,2358.9,2358.7,0.20854803]
[1725957180938,0.5997,2358.9,2358.7,0.63246803]
[1725957181238,0.5997,2358.9,2358.8,0.42392]
[1725957181942,0.5997,2358.9,2358.7,0.63246803]
[1725957182539,0.5997,2358.9,2358.8,0.42392]
[1725957183342,1.0236,2358.9,2358.7,0.63247803]
[1725957184047,0.5997,2358.9,2358.7,0.63247803]
[1725957184847,1.0236,2358.9,2358.7,0.63247803]
[1725957185046,1.0236,2358.9,2358.8,0.42392]
[1725957186042,1.0236,2358.9,2358.7,0.63246803]
[1725957186237,0.5997,2358.9,2358.8,0.42392]
[1725957187846,0.5997,2358.9,2358.7,0.63246803]
[1725957190053,0.5997,2358.9,2358.8,0.42392]
[1725957190351,1.10314817,2359.0,2358.9,0.4239]
[1725957191062,1.10314817,2359.1,2359.0,0.42388]
[1725957191552,1.10314817,2359.1,2359.0,0.63442127]
[1725957191852,1.65748648,2359.1,2359.0,0.21054127]
[1725957192052,0.42389,2359.0,2358.7,0.63374031]
[1725957192247,1.10472191,2358.8,2358.7,0.20982031]
[1725957192656,1.10472191,2358.8,2358.7,0.63376031]
[1725957192844,1.10472191,2358.8,2358.7,0.20982031]
[1725957193047,1.65748648,2358.8,2358.7,0.63376031]
[1725957193245,1.65748648,2358.8,2358.7,0.20982031]
[1725957193545,1.65748648,2358.8,2358.5,0.5599]
[1725957193749,1.1055579,2358.6,2358.5,1.19752835]
[1725957193946,1.1055579,2358.6,2358.5,1.43627271]
[1725957194143,1.6902579,2358.6,2358.5,1.86024271]
[1725957194950,1.6902579,2358.6,2358.5,0.63762835]
[1725957195145,2.80638648,2358.6,2358.5,1.9630931]
[1725957195452,1.1489,2358.6,2358.5,1.9630931]
[1725957195754,2.80638648,2358.6,2358.5,1.96308175]
[1725957196149,2.80638648,2358.6,2358.5,1.96309723]
[1725957196352,2.80638648,2358.6,2358.5,1.30036025]
[1725957199257,1.1060238,2358.6,2358.5,6.20306052]
[1725957199453,1.1060238,2358.6,2358.5,7.39976052]
[1725957200157,1.1060238,2358.6,2358.5,8.460086]
[1725957201363,1.1060238,2358.6,2358.5,9.57137368]
[1725957201752,1.1060238,2358.6,2358.5,7.84834793]
[1725957202056,1.1060238,2358.6,2358.5,9.57136359]
[1725957203155,1.1060238,2358.6,2358.5,8.90863169]
[1725957203358,1.1060238,2358.6,2358.5,10.14042806]
[1725957203856,1.1060238,2358.6,2358.5,8.90863169]
[1725957204160,1.65748648,2358.6,2358.5,8.90863169]
[1725957204859,1.65748648,2358.6,2358.5,10.1406755]
[1725957205055,1.65748648,2358.6,2358.5,7.18561603]
[1725957205265,1.65748648,2358.6,2358.5,8.90863928]
[1725957205448,1.65748648,2358.6,2358.5,5.30278086]
[1725957206050,1.65748648,2358.6,2358.5,4.07063928]
[1725957209763,2.20932263,2358.7,2358.6,0.42395]
[1725957209956,2.20932263,2358.7,2358.6,1.08665125]
[1725957210457,2.20932263,2358.7,2358.6,0.66270125]
[1725957210649,2.63326263,2358.7,2358.6,0.66270125]
[1725957210849,0.42396,2358.6,2358.3,1.53528768]
[1725957211057,2.19137,2358.5,2358.4,1.72324742]
[1725957211253,3.98126691,2358.5,2358.4,0.66278549]
[1725957211559,1.7674,2358.5,2358.4,1.08677549]
[1725957212063,1.7674,2358.5,2358.4,8.55844455]
[1725957212064,1.6601817,2358.5,2358.4,8.55844455]
[1725957212253,2.21386691,2358.6,2358.5,0.42397]
[1725957212254,1.10689602,2358.6,2358.5,0.42397]
[1725957212568,1.10689602,2358.8,2358.7,0.42394]
[1725957212866,2.2254817,2358.9,2358.8,0.42392]
[1725957212867,1.10689602,2358.9,2358.8,0.42392]
[1725957213158,1.10689602,2359.1,2359.0,0.42388]
[1725957213461,1.1065995,2359.2,2359.1,0.42386]
[1725957213655,1.1065995,2359.2,2359.1,3.25822539]
[1725957214255,1.10606118,2359.2,2359.1,1.08664549]
[1725957214457,1.6601817,2359.2,2359.1,1.08664549]
[1725957215059,1.6601817,2359.2,2359.1,1.08640492]
[1725957215456,1.10573217,2359.2,2359.1,0.66254492]
[1725957215655,1.6601817,2359.2,2359.0,0.42388]
[1725957215855,1.72562538,2359.1,2359.0,0.42388]
[1725957216068,1.10572538,2359.1,2359.0,1.08646109]
[1725957216267,1.10572538,2359.3,2359.0,7.07229049]
[1725957216570,1.6601817,2359.3,2359.2,0.42385]
[1725957218156,1.6601817,2359.3,2359.1,0.42385]
[1725957218357,1.67142333,2359.2,2359.1,0.42385]
[1725957218961,1.67142333,2359.2,2359.0,0.42387]
[1725957219163,0.6116,2359.1,2359.0,0.42387]
[1725957219363,0.6116,2359.1,2359.0,1.08644848]
[1725957220764,0.6116,2359.1,2359.0,0.66257848]
[1725957220969,1.71672333,2359.1,2358.9,0.42389]
[1725957221167,0.5881,2359.0,2358.9,0.42389]
[1725957221371,0.5881,2359.0,2358.9,1.08647865]
[1725957221670,6.4874817,2359.0,2358.7,0.42393]
[1725957221865,1.10474392,2358.9,2358.7,0.42393]
[1725957222061,1.68524392,2358.8,2358.7,0.42393]
[1725957222262,2.28734392,2358.8,2358.7,0.42393]
[1725957223466,2.28734392,2358.8,2358.7,0.42394]
[1725957224265,2.28734392,2358.8,2358.6,0.43318083]
[1725957224266,2.28734392,2358.8,2358.6,0.42394]
[1725957224668,1.10474392,2358.7,2358.6,0.42394]
[1725957225067,2.28734392,2358.8,2358.6,0.42394]
[1725957226264,1.10474392,2358.7,2358.6,0.42394]
[1725957226765,1.10474392,2358.7,2358.6,0.42395]
[1725957227364,1.10474392,2358.7,2358.5,0.63326528]
[1725957228277,1.10474392,2358.6,2358.5,0.63326528]
[1725957228469,1.10474392,2358.7,2358.6,0.42395]
[1725957228664,1.10474392,2358.7,2358.5,0.42396]
[1725957228865,1.10474392,2358.7,2358.4,0.42005151]
[1725957228866,1.10474392,2358.7,2358.6,0.42395]
[1725957229168,1.10392925,2358.7,2358.5,0.63923763]
[1725957229370,1.10392925,2358.7,2358.5,0.42396]
[1725957229873,1.10392925,2358.7,2358.5,0.63633305]
[1725957230674,1.10392925,2358.7,2358.5,0.21237305]
[1725957230874,1.10392925,2358.7,2358.3,43.4752135]
[1725957231074,1.10392925,2358.7,2358.5,0.42396]
[1725957231267,1.10392925,2358.7,2358.5,0.63375658]
[1725957231669,1.10392925,2358.7,2358.6,0.42395]
[1725957231869,1.10392925,2358.7,2358.3,43.4752135]
[1725957232071,1.10392925,2358.7,2358.5,0.42396]
[1725957232266,1.10392925,2358.7,2358.5,0.63952477]
[1725957232475,1.10392925,2358.7,2358.6,0.42395]
[1725957233075,1.10392925,2358.7,2358.5,0.42396]
[1725957233275,1.10392925,2358.7,2358.5,0.6376798]
[1725957233575,1.10392925,2358.7,2358.6,0.42395]
[1725957233775,2.28652925,2358.8,2358.6,0.42395]
[1725957233978,2.28652925,2358.8,2358.7,0.21492857]
[1725957234275,2.8427817,2358.8,2358.7,0.63886857]
[1725957234470,2.8427817,2358.8,2358.7,0.42394]
[1725957235072,2.8427817,2358.8,2358.7,0.63199764]
[1725957235271,3.2667017,2358.8,2358.6,0.42394]
[1725957235479,1.10358353,2358.7,2358.6,0.42394]
[1725957236181,1.70568353,2358.8,2358.7,0.42394]
[1725957236481,1.10358353,2358.9,2358.8,0.42392]
[1725957236776,1.10358353,2358.9,2358.8,0.99282]
[1725957236984,1.10358353,2358.9,2358.8,0.5689]
[1725957238170,1.10358353,2358.9,2358.8,0.99282]
[1725957239081,1.10358353,2358.9,2358.8,0.5689]
[1725957239485,2.8152817,2359.0,2358.8,0.5689]
[1725957239678,1.10378141,2358.9,2358.7,0.5706]
[1725957239882,1.10378138,2358.9,2358.7,0.42393]
[1725957240183,0.5522,2358.8,2358.7,0.42393]
[1725957240680,1.10378138,2358.9,2358.8,0.42392]
[1725957240882,2.21386691,2359.1,2359.0,0.42388]
[1725957240883,1.10378138,2359.1,2359.0,0.42388]
[1725957241071,1.10378138,2359.3,2359.0,1.7729977]
[1725957241274,2.8122817,2359.4,2359.2,0.42385]
[1725957241275,2.25588138,2359.4,2359.2,0.42385]
[1725957241473,2.25588138,2359.4,2359.1,0.97615]
[1725957241782,2.25588138,2359.4,2359.1,0.5523]
[1725957241783,1.10378138,2359.3,2359.1,0.5523]
[1725957242083,2.0840217,2359.3,2358.9,1.1566]
[1725957242278,1.10372596,2359.1,2358.9,1.1566]
[1725957242484,1.10372596,2359.1,2358.9,1.5805]
[1725957242684,0.5791,2359.0,2358.9,1.5805]
[1725957245691,1.10372596,2359.3,2359.1,0.42385]
[1725957245991,1.10372596,2359.3,2359.2,0.5831]
[1725957246187,1.10372596,2359.3,2359.2,1.1486]
[1725957246586,1.65592596,2359.4,2359.2,1.1486]
[1725957247089,1.65592596,2359.4,2359.2,1.57245]
[1725957247289,1.65592596,2359.4,2359.2,1.1486]
[1725957247797,1.65592596,2359.4,2359.2,1.57245]
[1725957248084,1.65592596,2359.4,2359.2,1.57244]
[1725957248290,1.65592596,2359.4,2359.2,1.1486]
[1725957249487,1.65592596,2359.4,2359.2,0.5831]
[1725957249985,1.65592596,2359.4,2358.9,1.71247439]
[1725957250190,1.71232596,2359.3,2358.9,1.02599]
[1725957250391,1.71232596,2359.3,2358.9,0.6021]
[1725957250588,0.6013,2359.2,2358.8,3.16729079]
[1725957250791,1.70502596,2359.2,2358.8,1.209]
[1725957250984,1.70502596,2359.2,2358.9,0.4239]
[1725957251387,1.10372596,2359.1,2358.9,0.42389]
[1725957251585,0.5879,2359.0,2358.9,0.42389]
[1725957252492,0.5879,2359.0,2358.8,1.02621]
[1725957252699,0.55,2358.9,2358.8,1.02621]
[1725957256595,1.107,2358.9,2358.8,1.02621]
[1725957258593,1.107,2358.9,2358.8,1.68882719]
[1725957260099,1.10372596,2359.2,2359.1,0.42386]
[1725957260302,0.564,2359.3,2359.2,0.42385]
[1725957260500,1.68082596,2359.5,2359.1,1.10979278]
[1725957260688,2.24562596,2359.5,2359.3,0.42382]
[1725957261497,2.24562596,2359.5,2359.4,0.42381]
[1725957261691,2.24562596,2359.5,2359.3,0.42382]
[1725957261896,2.24562596,2359.5,2359.4,0.42381]
[1725957262284,2.24562596,2359.5,2359.3,0.42382]
[1725957262488,2.24562596,2359.5,2359.4,0.42381]
[1725957262900,2.24562596,2359.5,2359.3,0.42382]
[1725957263289,2.24562596,2359.5,2359.2,1.60954]
[1725957263490,2.24562596,2359.5,2359.3,0.42383]
[1725957263690,1.10372596,2359.4,2359.3,0.42383]
[1725957265402,2.24562596,2359.5,2359.3,0.42383]
[1725957265996,1.10372596,2359.4,2359.3,0.42383]
[1725957266201,2.24562596,2359.5,2359.3,0.42383]
[1725957266690,1.10372596,2359.4,2359.3,0.42383]
[1725957267501,2.24562596,2359.5,2359.3,0.42383]
[1725957267697,1.10372596,2359.4,2359.3,0.42383]
[1725957267895,2.24562596,2359.5,2359.3,0.42383]
[1725957269596,0.42388,2359.0,2358.9,0.098]
[1725957269800,7.00005329,2359.4,2358.4,0.098]
[1725957269801,1.05976,2358.9,2358.4,0.098]
[1725957270001,1.10209962,2358.6,2358.3,0.424]
[1725957270592,1.10209962,2358.6,2358.1,1.24684851]
[1725957270796,1.10209962,2358.6,2358.4,0.42398]
[1725957270992,1.10209962,2358.5,2358.2,0.42402]
[1725957271198,1.69380833,2358.4,2358.2,0.42402]
[1725957271392,2.25410833,2358.4,2358.2,0.42402]
[1725957272193,2.25410833,2358.4,2358.1,0.42403]
[1725957272394,2.84500833,2358.4,2358.0,0.42405]
[1725957272590,1.10160833,2358.3,2358.0,0.42405]
[1725957272803,2.84500833,2358.4,2358.1,0.42404]
[1725957273605,3.26899833,2358.4,2358.1,0.42404]
[1725957273791,1.52561833,2358.3,2357.8,1.56938874]
[1725957274501,1.10160833,2358.3,2358.0,0.42406]
[1725957274703,1.10160833,2358.3,2358.1,0.42404]
[1725957274906,2.84500833,2358.4,2358.1,0.42403]
[1725957275293,3.26899833,2358.4,2358.1,0.42403]
[1725957275501,3.26899833,2358.4,2358.0,0.42405]
[1725957275807,2.84500833,2358.4,2357.8,0.5582]
[1725957276001,1.10160833,2358.3,2358.1,0.42404]
[1725957276205,1.52561833,2358.3,2358.0,0.42405]
[1725957276603,0.42401,2358.3,2358.0,0.42405]
[1725957277004,3.26900833,2358.4,2358.0,0.42405]
[1725957277202,1.52562833,2358.3,2358.0,0.42405]
[1725957277403,0.42403,2358.2,2357.9,0.42407]
[1725957280505,0.42403,2358.2,2357.8,0.5582]
[1725957280506,0.42403,2358.2,2358.0,0.42406]
[1725957280698,0.42403,2358.2,2357.9,0.42407]
[1725957281805,0.42403,2358.2,2357.8,0.5582]
[1725957282004,0.42403,2358.2,2357.9,0.42407]
[1725957282499,0.42403,2358.2,2358.0,0.42406]
[1725957282811,0.42404,2358.1,2357.9,0.42407]
[1725957283008,0.567,2358.0,2357.9,0.42407]
[1725957286409,0.42402,2358.3,2358.1,0.42404]
[1725957286613,0.6001,2358.2,2358.1,0.42404]
[1725957288509,1.02413,2358.2,2358.0,0.42405]
[1725957288814,0.6001,2358.2,2358.0,0.42405]
[1725957289019,1.02414,2358.2,2358.0,0.42405]
[1725957289413,0.6001,2358.2,2357.8,0.5582]
[1725957289915,1.02414,2358.2,2358.0,0.42405]
[1725957290213,0.42404,2358.1,2358.0,0.42405]
[1725957290717,0.42404,2358.1,2358.0,0.42406]
[1725957291016,0.6001,2358.2,2358.0,0.42406]
[1725957291316,0.42405,2358.1,2357.9,0.42407]
[1725957292313,0.6001,2358.2,2357.9,0.42407]
[1725957292618,0.42405,2358.1,2357.9,0.42407]
[1725957293315,0.42406,2358.0,2357.9,0.42407]
[1725957293512,0.42406,2358.1,2357.9,0.42407]
[1725957294116,0.42406,2358.0,2357.9,0.42407]
[1725957294512,0.42406,2358.0,2357.9,0.42408]
[1725957294713,0.42406,2358.0,2357.8,0.98229]
[1725957294917,0.5941,2357.9,2357.8,0.98229]
[1725957296217,1.01818,2357.9,2357.8,0.98229]
[1725957296417,0.5941,2357.9,2357.8,0.98229]
[1725957296822,1.01818,2357.9,2357.8,0.98229]
[1725957297617,4.8349,2357.9,2357.7,0.4241]
[1725957297820,0.4241,2357.8,2357.7,0.4241]
[1725957298307,0.5941,2357.9,2357.7,0.4241]
[1725957298718,0.4241,2357.8,2357.7,0.4241]
[1725957299813,0.4241,2357.8,2357.7,0.42412]
[1725957300214,0.42412,2357.7,2357.6,0.5962]
[1725957300415,0.42411,2357.8,2357.6,1.02033]
[1725957300622,0.42411,2357.8,2357.7,0.42412]
[1725957300823,0.42411,2357.8,2357.6,1.02032]
[1725957301013,0.42411,2357.8,2357.7,0.42412]
[1725957301617,0.42411,2357.8,2357.6,1.02032]
[1725957301822,0.5941,2357.9,2357.7,0.42412]
[1725957302622,0.4241,2357.8,2357.7,0.42412]
[1725957303325,1.65314943,2358.4,2357.6,1.65654]
[1725957303525,0.5586,2358.3,2358.2,0.42401]
[1725957303824,0.42403,2358.2,2358.1,0.5835]
[1725957304023,0.42407,2358.0,2357.9,0.5835]
[1725957304214,1.06013,2358.1,2357.7,0.42411]
[1725957304215,0.4241,2357.8,2357.7,0.42411]
[1725957304524,0.42412,2357.7,2357.6,0.5835]
[1725957304823,0.42417,2357.4,2357.3,0.20985513]
[1725957305124,0.42417,2357.4,2357.2,0.4242]
[1725957305323,0.5586,2357.3,2357.2,0.4242]